fUSD/lending_fUSD_20251123
["ID","MTS","AMOUNT","RATE_DAILY","PERIOD"]
[394725332,1763919054016,-380.614837,0.00032359,31]
[394725333,1763919054028,-151.0,0.00032359,31]
[394725334,1763919054038,-151.0,0.00032359,31]
[394725335,1763919054048,-151.0,0.00032359,31]
[394725336,1763919054059,-151.0,0.00032359,31]
[394725337,1763919054072,-151.0,0.00032359,31]
[394725338,1763919054082,-151.0,0.00032359,31]
[394725339,1763919054093,-151.0,0.00032359,31]
[394725340,1763919054102,-245.268226,0.00032359,30]
[394725341,1763919054113,-151.0,0.00032359,31]
[394725342,1763919054123,-245.268226,0.00032359,30]
[394725343,1763919054133,-151.0,0.00032359,31]
[394725344,1763919054144,-245.268226,0.00032359,30]
[394725345,1763919054154,-151.0,0.00032359,31]
[394725346,1763919054164,-245.268226,0.00032359,30]
[394725347,1763919054174,-151.0,0.00032359,31]
[394725348,1763919054185,-151.0,0.00032359,31]
[394725349,1763919054199,-151.0,0.00032359,31]
[394725350,1763919054209,-1317.116489,0.00032359,28]
[394725351,1763919054220,-151.0,0.00032359,31]
[394725352,1763919054231,-1317.116489,0.00032359,28]
[394725353,1763919054241,-151.0,0.00032359,31]
[394725354,1763919054251,-1317.116489,0.00032359,28]
[394725355,1763919054261,-1317.116489,0.00032359,28]
[394725356,1763919054272,-151.0,0.00032359,31]
[394725357,1763919054283,-151.0,0.00032359,31]
[394725358,1763919054293,-151.0,0.00032359,31]
[394725359,1763919054303,-163.42293,0.00032359,31]
[394725360,1763919054313,-163.42293,0.00032359,31]
[394725361,1763919054324,-163.42293,0.00032359,31]
[394725362,1763919054334,-163.42293,0.00032359,31]
[394725363,1763919054344,-744.43605191,0.00032524,2]
[394725364,1763919054354,-153.5,0.00032551,2]
[394725365,1763919054363,-5318.19,0.00032658,2]
[394725366,1763919054374,-204.89,0.00032658,2]
[394725367,1763919054384,-243.29,0.000327,30]
[394725368,1763919054395,-1249.95,0.00032724,2]
[394725369,1763919054406,-659.0,0.00032914,2]
[394725370,1763919054417,-1256.0,0.00032914,2]
[394725371,1763919054428,-1192.0,0.00032914,2]
[394725372,1763919054439,-908.0,0.00032914,2]
[394725373,1763919054451,-576.0,0.00032914,2]
[394725374,1763919054461,-3436.0,0.00032914,2]
[394725375,1763919054472,-609.0,0.00032914,2]
[394725376,1763919054484,-1320.0,0.00032914,2]
[394725377,1763919054493,-157.0,0.00032914,2]
[394725378,1763919054503,-6535.037,0.00032914,2]
[394725379,1763919054513,-301.72,0.00032914,2]
[394725380,1763919054523,-788.84,0.00033165,2]
[394725381,1763919054534,-322.0,0.000332,2]
[394725382,1763919054543,-531.44794408,0.00033304,2]
[394725383,1763919054553,-1738.0,0.0003335,5]
[394725384,1763919054564,-1036.83747208,0.00033443,30]
[394725385,1763919054573,-992.52705,0.00033638,2]
[394725386,1763919054583,-4616.89569016,0.00033644,2]
[394725387,1763919054593,-150.0,0.00033706,20]
[394725388,1763919054603,-7513.15,0.000338,2]
[394725389,1763919054613,-173.06848048,0.0003396,2]
[394725390,1763919054623,-4800.804,0.00034255,38]
[394725391,1763919054634,-339.469,0.00034255,38]
[394725392,1763919054644,-220.65,0.00034373,30]
[394725393,1763919054655,-150.0,0.00035,30]
[394725394,1763919054665,-186.90707516,0.00035089,2]
[394725395,1763919054675,-2156.45162342,0.00035412,2]
[394725396,1763919054686,-243.29,0.000355,30]
[394725397,1763919054697,-5718.49,0.000355,14]
[394725398,1763919054709,-1067.35,0.00035683,2]
[394725399,1763919054720,-858.9,0.00035683,5]
[394725400,1763919054731,-744.43605191,0.00035706,2]
[394725401,1763919054742,-469.641,0.00035914,2]
[394725402,1763919054751,-576.0,0.00035914,2]
[394725403,1763919054760,-3436.0,0.00035914,2]
[394725404,1763919054771,-609.0,0.00035914,2]
[394725405,1763919054790,-1320.0,0.00035914,2]
[394725406,1763919054802,-150.0,0.00035914,2]
[394725407,1763919054812,-6497.0,0.00035914,2]
[394725408,1763919054822,-252.0,0.00035914,2]
[394725409,1763919054832,-4616.89569016,0.0003595,2]
[394725410,1763919054841,-327.78729004,0.0003608,2]
[394725411,1763919054851,-701.46,0.00036219,2]
[394725412,1763919054860,-479.01,0.00036219,2]
[394725413,1763919054869,-701.46,0.00036219,2]
[394725414,1763919054879,-479.01,0.00036219,2]
[394725415,1763919054888,-993.85,0.00036219,2]
[394725416,1763919054898,-479.01,0.00036219,2]
[394725417,1763919054908,-7513.15,0.000363,2]
[394725418,1763919054918,-204.072,0.00036356,7]
[394725419,1763919054928,-150.0,0.00036356,7]
[394725420,1763919054938,-150.0,0.00036356,7]
[394725421,1763919054947,-531.44794408,0.00036465,2]
[394725422,1763919054956,-200.0,0.00036561,5]
[394725423,1763919054967,-200.0,0.00036561,5]
[394725424,1763919054978,-287.21663424,0.0003663,30]
[394725425,1763919054993,-151.0,0.00036632,30]
[394725426,1763919055002,-211.868522,0.00036632,15]
[394725427,1763919055011,-211.868522,0.00036632,15]
[394725428,1763919055022,-151.0,0.00036632,31]
[394725429,1763919055033,-211.868522,0.00036632,15]
[394725430,1763919055044,-194.34297,0.00036632,31]
[394725431,1763919055055,-211.868525,0.00036632,15]
[394725432,1763919055067,-572.880782,0.00036632,31]
[394725433,1763919055077,-194.34297,0.00036632,31]
[394725434,1763919055087,-572.880782,0.00036632,31]
[394725435,1763919055096,-194.34297,0.00036632,31]
[394725436,1763919055105,-151.0,0.00036632,31]
[394725437,1763919055115,-194.342977,0.00036632,31]
[394725438,1763919055124,-572.880782,0.00036632,31]
[394725439,1763919055134,-572.88079,0.00036632,31]
[394725440,1763919055143,-222.411127,0.00036632,31]
[394725441,1763919055153,-222.411127,0.00036632,31]
[394725442,1763919055163,-222.411127,0.00036632,31]
[394725443,1763919055172,-222.411118,0.00036632,31]
[394725444,1763919055182,-151.0,0.00036632,31]
[394725445,1763919055192,-151.0,0.00036632,31]
[394725446,1763919055204,-1000.0,0.00036632,14]
[394725447,1763919055218,-219.62,0.0003676,2]
[394725448,1763919055228,-1000.0,0.00036844,2]
[394725449,1763919055237,-220.65,0.00036847,60]
[394725450,1763919055247,-150.0,0.00036904,2]
[394725451,1763919055256,-150.0,0.00036904,2]
[394725452,1763919055266,-151.78,0.00036904,2]
[394725453,1763919055276,-150.0,0.00036904,2]
[394725454,1763919055287,-150.0,0.00036904,2]
[394725455,1763919055297,-551.04,0.00036904,2]
[394725456,1763919055307,-300.0,0.00036904,2]
[394725457,1763919055317,-150.0,0.00036904,2]
[394725458,1763919055328,-150.0,0.00036904,2]
[394725459,1763919055337,-150.0,0.00036904,2]
[394725460,1763919055347,-150.0,0.00036904,2]
[394725461,1763919055356,-666.0,0.00036999,30]
[394725462,1763919055366,-500.0,0.00036999,7]
[394725463,1763919055376,-500.0,0.00036999,8]
[394725464,1763919055386,-598.14,0.00036999,2]
[394725465,1763919055395,-50000.0,0.00037,37]
[394725466,1763919055405,-169.075261,0.00037,31]
[394725467,1763919055415,-5071.83166452,0.00037,2]
[394725468,1763919055424,-2028.13631473,0.00037096,30]
[394725469,1763919055433,-211.111271,0.000371,14]
[394725470,1763919055443,-5718.49,0.000371,14]
[394725471,1763919055452,-2156.45162342,0.00037108,2]
[394725472,1763919055462,-685.87,0.00037178,2]
[394725473,1763919055471,-701.46,0.00037178,2]
[394725474,1763919055480,-2028.13631473,0.00037233,30]
[394725475,1763919055490,-172.424068,0.000373,31]
[394725476,1763919055499,-188.269511,0.000373,31]
[394725477,1763919055508,-151.0,0.000373,31]
[394725478,1763919055517,-172.424068,0.000373,31]
[394725479,1763919055527,-151.0,0.000373,31]
[394725480,1763919055536,-686.998004,0.000373,31]
[394725481,1763919055545,-686.998004,0.000373,31]
[394725482,1763919055554,-172.424068,0.000373,31]
[394725483,1763919055563,-686.998004,0.000373,31]
[394725484,1763919055573,-172.424068,0.000373,31]
[394725485,1763919055583,-151.0,0.000373,31]
[394725486,1763919055592,-686.998004,0.000373,31]
[394725487,1763919055601,-151.0,0.000373,31]
[394725488,1763919055611,-151.0,0.000373,31]
[394725489,1763919055620,-151.0,0.000373,31]
[394725490,1763919055629,-200.0,0.000373,30]
[394725491,1763919055638,-200.0,0.000373,30]
[394725492,1763919055647,-200.0,0.000373,30]
[394725493,1763919055656,-200.0,0.000373,30]
[394725494,1763919055667,-151.0,0.000373,31]
[394725495,1763919055677,-151.0,0.000373,31]
[394725496,1763919055687,-151.0,0.000373,31]
[394725497,1763919055698,-161.653106,0.000373,31]
[394725498,1763919055708,-161.653106,0.000373,31]
[394725499,1763919055717,-160.182225,0.000373,31]
[394725500,1763919055727,-255.288733,0.000373,31]
[394725501,1763919055736,-161.653106,0.000373,31]
[394725502,1763919055746,-160.182225,0.000373,31]
[394725503,1763919055756,-204.034313,0.000373,31]
[394725504,1763919055767,-255.288733,0.000373,31]
[394725505,1763919055777,-161.653106,0.000373,31]
[394725506,1763919055786,-160.182225,0.000373,31]
[394725507,1763919055795,-204.034313,0.000373,31]
[394725508,1763919055805,-255.288733,0.000373,31]
[394725509,1763919055814,-204.034313,0.000373,31]
[394725510,1763919055823,-160.182225,0.000373,31]
[394725511,1763919055833,-255.288733,0.000373,31]
[394725512,1763919055842,-204.034313,0.000373,31]
[394725513,1763919055852,-340.0,0.0003735,30]
[394725514,1763919055861,-500.0,0.0003735,30]
[394725515,1763919055870,-500.0,0.0003735,30]
[394725516,1763919055880,-500.0,0.0003735,30]
[394725517,1763919055890,-2028.13631473,0.00037397,30]
[394725518,1763919055900,-1031.51206778,0.000374,120]
[394725519,1763919055910,-7513.15,0.000374,2]
[394725520,1763919055919,-173.06848048,0.0003743,2]
[394725521,1763919055929,-716.55753128,0.00037499,120]
[394725522,1763919055940,-2028.13631473,0.00037534,30]
[394725523,1763919055950,-500.0,0.0003755,30]
[394725524,1763919055959,-1036.83747208,0.00037588,30]
[394725525,1763919055969,-1036.83747208,0.00037588,30]
[394725526,1763919055979,-1136.74412323,0.00037589,20]
[394725527,1763919055993,-1031.04670461,0.00037589,20]
[394725528,1763919056003,-1008.60023197,0.00037589,20]
[394725529,1763919056012,-1407.24327559,0.00037589,20]
[394725530,1763919056022,-1000.0,0.00037601,7]
[394725531,1763919056034,-2028.13631473,0.00037699,30]
[394725532,1763919056044,-150.0,0.00037726,2]
[394725533,1763919056053,-169.71,0.00037726,2]
[394725534,1763919056065,-150.0,0.00037726,2]
[394725535,1763919056074,-150.0,0.00037726,2]
[394725536,1763919056083,-357.2,0.00037726,2]
[394725537,1763919056092,-169.71,0.00037726,2]
[394725538,1763919056102,-150.0,0.00037726,2]
[394725539,1763919056311,-150.0,0.00037726,2]
[394725540,1763919056322,-169.71,0.00037726,2]
[394725541,1763919056332,-834.5,0.00037726,2]
[394725542,1763919056342,-303.01,0.00037726,2]
[394725543,1763919056352,-500.0,0.0003775,30]
[394725544,1763919056361,-500.0,0.00037808,120]
[394725545,1763919056371,-3000.0,0.00037808,7]
[394725546,1763919056380,-2028.13631473,0.00037836,30]
[394725547,1763919056390,-500.0,0.0003795,30]
[394725548,1763919056400,-1000.0,0.00037967,7]
[394725549,1763919056410,-2028.13631473,0.00037973,30]
[394725550,1763919056419,-300.0,0.00037986,2]
[394725551,1763919056429,-666.0,0.00037999,30]
[394725552,1763919056441,-50000.0,0.00038,38]
[394725553,1763919056451,-293.998684,0.00038,31]
[394725554,1763919056461,-400.34212,0.00038,31]
[394725555,1763919056471,-400.34212,0.00038,31]
[394725556,1763919056480,-400.34212,0.00038,31]
[394725557,1763919056489,-400.34212,0.00038,31]
[394725558,1763919056499,-293.998684,0.00038,31]
[394725559,1763919056508,-293.998684,0.00038,31]
[394725560,1763919056517,-293.998684,0.00038,31]
[394725561,1763919056528,-1376.0,0.00038034,20]
[394725562,1763919056537,-151.0,0.00038034,31]
[394725563,1763919056547,-151.0,0.00038034,31]
[394725564,1763919056557,-151.0,0.00038034,31]
[394725565,1763919056566,-154.605475,0.00038034,31]
[394725566,1763919056576,-316.986545,0.00038034,31]
[394725567,1763919056585,-316.986545,0.00038034,31]
[394725568,1763919056594,-151.0,0.00038034,31]
[394725569,1763919056604,-316.986545,0.00038034,31]
[394725570,1763919056613,-151.0,0.00038034,31]
[394725571,1763919056623,-247.988392,0.00038034,31]
[394725572,1763919056632,-262.722164,0.00038034,31]
[394725573,1763919056641,-316.986545,0.00038034,31]
[394725574,1763919056651,-151.0,0.00038034,31]
[394725575,1763919056660,-262.722164,0.00038034,31]
[394725576,1763919056671,-262.722164,0.00038034,31]
[394725577,1763919056680,-262.722164,0.00038034,31]
[394725578,1763919056690,-235.37613,0.00038034,31]
[394725579,1763919056700,-235.37613,0.00038034,31]
[394725580,1763919056710,-235.37613,0.00038034,31]
[394725581,1763919056720,-235.37613,0.00038034,31]
[394725582,1763919056729,-1000.0,0.00038067,7]
[394725583,1763919056738,-500.0,0.00038082,120]
[394725584,1763919056747,-500.0,0.00038082,7]
[394725585,1763919056757,-1400.0,0.00038082,7]
[394725586,1763919056766,-2028.13631473,0.00038137,30]
[394725587,1763919056776,-300.0,0.00038137,2]
[394725588,1763919056785,-300.0,0.00038148,2]
[394725589,1763919056795,-300.0,0.00038185,2]
[394725590,1763919056805,-300.0,0.00038187,2]
[394725591,1763919056814,-300.0,0.00038193,2]
[394725592,1763919056824,-300.0,0.00038193,2]
[394725593,1763919056834,-1285.0,0.000382,7]
[394725594,1763919056843,-300.0,0.0003821,2]
[394725595,1763919056853,-300.0,0.00038224,2]
[394725596,1763919056862,-300.0,0.00038229,2]
[394725597,1763919056872,-300.0,0.00038248,2]
[394725598,1763919056881,-300.0,0.00038254,2]
[394725599,1763919056892,-982.8385,0.00038256,2]
[394725600,1763919056902,-4616.89569016,0.00038256,2]
[394725601,1763919056912,-300.0,0.00038262,2]
[394725602,1763919056922,-300.0,0.00038264,2]
[394725603,1763919056931,-300.0,0.00038269,2]
[394725604,1763919056940,-300.0,0.00038269,2]
[394725605,1763919056949,-300.0,0.0003827,2]
[394725606,1763919056959,-300.0,0.00038271,2]
[394725607,1763919056969,-2028.13631473,0.00038274,30]
[394725608,1763919056979,-300.0,0.00038278,2]
[394725609,1763919056992,-150.0,0.00038284,7]
[394725610,1763919057002,-300.0,0.00038288,2]
[394725611,1763919057012,-300.0,0.00038293,2]
[394725612,1763919057022,-300.0,0.00038295,2]
[394725613,1763919057032,-152.54886466,0.00038302,7]
[394725614,1763919057041,-300.0,0.00038309,2]
[394725615,1763919057051,-300.0,0.00038311,2]
[394725616,1763919057060,-300.0,0.00038313,2]
[394725617,1763919057071,-300.0,0.00038314,2]
[394725618,1763919057080,-500.0,0.00038318,120]
[394725619,1763919057090,-300.0,0.00038318,2]
[394725620,1763919057100,-300.0,0.00038318,2]
[394725621,1763919057109,-300.0,0.00038337,2]
[394725622,1763919057119,-300.0,0.00038338,2]
[394725623,1763919057129,-300.0,0.00038338,2]
[394725624,1763919057138,-300.0,0.00038342,2]
[394725625,1763919057148,-500.0,0.00038346,14]
[394725626,1763919057157,-500.0,0.00038346,14]
[394725627,1763919057167,-500.0,0.00038346,14]
[394725628,1763919057177,-500.0,0.00038346,14]
[394725629,1763919057186,-500.0,0.00038346,14]
[394725630,1763919057196,-500.0,0.00038346,14]
[394725631,1763919057206,-500.0,0.00038346,14]
[394725632,1763919057215,-500.0,0.00038346,14]
[394725633,1763919057224,-1000.0,0.00038349,7]
[394725634,1763919057233,-300.0,0.0003835,2]
[394725635,1763919057243,-300.0,0.0003835,2]
[394725636,1763919057252,-300.0,0.00038355,10]
[394725637,1763919057261,-300.0,0.00038355,10]
[394725638,1763919057271,-421.4278406,0.00038355,10]
[394725639,1763919057280,-593.75870283,0.00038355,30]
[394725640,1763919057290,-666.0,0.00038355,30]
[394725641,1763919057299,-1036.83747208,0.00038355,30]
[394725642,1763919057310,-500.0,0.00038355,7]
[394725643,1763919057320,-500.0,0.00038355,7]
[394725644,1763919057330,-500.0,0.00038355,7]
[394725645,1763919057339,-500.0,0.00038355,7]
[394725646,1763919057348,-500.0,0.00038355,7]
[394725647,1763919057357,-500.0,0.00038355,8]
[394725648,1763919057367,-500.0,0.00038355,8]
[394725649,1763919057379,-156.54985602,0.00038355,8]
[394725650,1763919057389,-300.0,0.00038355,2]
[394725651,1763919057399,-1067.35,0.00038355,2]
[394725652,1763919057409,-1067.35,0.00038355,2]
[394725653,1763919057419,-1067.35,0.00038355,2]
[394725654,1763919057428,-1067.35,0.00038355,2]
[394725655,1763919057438,-598.14,0.00038355,2]
[394725656,1763919057448,-598.14,0.00038355,2]
[394725657,1763919057457,-598.14,0.00038355,2]
[394725658,1763919057467,-598.14,0.00038355,2]
[394725659,1763919057477,-598.14,0.00038355,2]
[394725660,1763919057486,-868.96,0.00038356,5]
[394725661,1763919057496,-851.07,0.00038356,14]
[394725662,1763919057506,-500.0,0.00038356,8]
[394725663,1763919057515,-150.015866,0.00038356,8]
[394725664,1763919057524,-507.538495,0.00038356,8]
[394725665,1763919057534,-322.861803,0.00038356,8]
[394725666,1763919057544,-589.663941,0.00038356,8]
[394725667,1763919057554,-153.191145,0.00038356,8]
[394725668,1763919057563,-151.0,0.00038356,2]
[394725669,1763919057573,-161.742463,0.00038356,8]
[394725670,1763919057583,-150.137009,0.00038356,8]
[394725671,1763919057592,-1000.0,0.00038356,2]
[394725672,1763919057602,-1000.0,0.00038356,2]
[394725673,1763919057612,-1000.0,0.00038356,2]
[394725674,1763919057622,-1000.0,0.00038356,2]
[394725675,1763919057631,-1000.0,0.00038356,2]
[394725676,1763919057641,-1000.0,0.00038356,2]
[394725677,1763919057650,-1000.0,0.00038356,2]
[394725678,1763919057660,-223.846749,0.00038356,8]
[394725679,1763919057670,-776.9481576,0.00038356,7]
[394725680,1763919057679,-500.0,0.00038356,8]
[394725681,1763919057689,-500.0,0.00038356,8]
[394725682,1763919057699,-500.0,0.00038356,8]
[394725683,1763919057708,-500.0,0.00038356,8]
[394725684,1763919057718,-500.0,0.00038356,8]
[394725685,1763919057727,-500.0,0.00038356,8]
[394725686,1763919057736,-300.0,0.00038356,2]
[394725687,1763919057746,-500.0,0.00038356,8]
[394725688,1763919057756,-500.0,0.00038356,8]
[394725689,1763919057766,-500.0,0.00038356,8]
[394725690,1763919057776,-500.0,0.00038356,8]
[394725691,1763919057785,-500.0,0.00038356,8]
[394725692,1763919057795,-500.0,0.00038356,8]
[394725693,1763919057805,-500.0,0.00038356,8]
[394725694,1763919057814,-500.0,0.00038356,8]
[394725695,1763919057825,-197.092708,0.00038356,8]
[394725696,1763919057834,-500.0,0.00038356,8]
[394725697,1763919057844,-500.0,0.00038356,8]
[394725698,1763919057853,-500.0,0.00038356,8]
[394725699,1763919057863,-500.0,0.00038356,8]
[394725700,1763919057873,-500.0,0.00038356,8]
[394725701,1763919057884,-500.0,0.00038356,8]
[394725702,1763919057892,-500.0,0.00038356,8]
[394725703,1763919057901,-500.0,0.00038356,8]
[394725704,1763919057911,-500.0,0.00038356,8]
[394725705,1763919057921,-500.0,0.00038356,8]
[394725706,1763919057930,-500.0,0.00038356,8]
[394725707,1763919057940,-1711.83724579,0.00038356,14]
[394725708,1763919057949,-624.56004498,0.00038356,3]
[394725709,1763919057959,-500.0,0.00038356,8]
[394725710,1763919057968,-419.24214834,0.00038356,8]
[394725711,1763919057980,-400.0,0.00038356,8]
[394725712,1763919057995,-500.2962993,0.00038356,8]
[394725713,1763919058004,-500.0,0.00038356,8]
[394725714,1763919058014,-500.0,0.00038356,8]
[394725715,1763919058024,-500.0,0.00038356,8]
[394725716,1763919058033,-500.0,0.00038356,8]
[394725717,1763919058043,-631.1519267,0.00038356,8]
[394725718,1763919058053,-500.0,0.00038356,8]
[394725719,1763919058067,-500.0,0.00038356,8]
[394725720,1763919058076,-500.0,0.00038356,8]
[394725721,1763919058087,-500.0,0.00038356,8]
[394725722,1763919058096,-500.0,0.00038356,8]
[394725723,1763919058106,-500.0,0.00038356,8]
[394725724,1763919058115,-500.0,0.00038356,8]
[394725725,1763919058125,-284.35496557,0.00038356,8]
[394725726,1763919058135,-500.0,0.00038356,8]
[394725727,1763919058145,-500.0,0.00038356,8]
[394725728,1763919058154,-500.0,0.00038356,8]
[394725729,1763919058164,-500.0,0.00038356,8]
[394725730,1763919058173,-500.0,0.00038356,8]
[394725731,1763919058183,-762.97,0.00038356,8]
[394725732,1763919058192,-500.0,0.00038356,8]
[394725733,1763919058202,-500.0,0.00038356,8]
[394725734,1763919058211,-500.0,0.00038356,8]
[394725735,1763919058220,-500.0,0.00038356,8]
[394725736,1763919058230,-500.0,0.00038356,8]
[394725737,1763919058239,-500.0,0.00038356,8]
[394725738,1763919058249,-500.0,0.00038356,8]
[394725739,1763919058258,-756.55,0.00038356,8]
[394725740,1763919058267,-500.0,0.00038356,8]
[394725741,1763919058277,-500.0,0.00038356,8]
[394725742,1763919058286,-500.0,0.00038356,8]
[394725743,1763919058296,-500.0,0.00038356,8]
[394725744,1763919058305,-500.0,0.00038356,8]
[394725745,1763919058316,-500.0,0.00038356,8]
[394725746,1763919058325,-500.0,0.00038356,8]
[394725747,1763919058335,-506.60953683,0.00038356,8]
[394725748,1763919058345,-500.0,0.00038356,8]
[394725749,1763919058355,-500.0,0.00038356,8]
[394725750,1763919058365,-500.0,0.00038356,8]
[394725751,1763919058374,-500.0,0.00038356,8]
[394725752,1763919058384,-500.0,0.00038356,8]
[394725753,1763919058394,-500.0,0.00038356,8]
[394725754,1763919058403,-500.0,0.00038356,8]
[394725755,1763919058413,-500.0,0.00038356,8]
[394725756,1763919058422,-384.65994715,0.00038356,8]
[394725757,1763919058432,-500.0,0.00038356,8]
[394725758,1763919058441,-500.0,0.00038356,8]
[394725759,1763919058450,-500.0,0.00038356,8]
[394725760,1763919058460,-500.0,0.00038356,8]
[394725761,1763919058470,-500.0,0.00038356,8]
[394725762,1763919058479,-504.71962036,0.00038356,8]
[394725763,1763919058488,-500.0,0.00038356,8]
[394725764,1763919058497,-500.0,0.00038356,8]
[394725765,1763919058506,-500.0,0.00038356,8]
[394725766,1763919058515,-547.25,0.00038356,8]
[394725767,1763919058526,-500.0,0.00038356,8]
[394725768,1763919058534,-1013.17,0.00038356,8]
[394725769,1763919058543,-500.0,0.00038356,8]
[394725770,1763919058553,-500.0,0.00038356,8]
[394725771,1763919058562,-500.0,0.00038356,8]
[394725772,1763919058572,-500.0,0.00038356,8]
[394725773,1763919058581,-500.0,0.00038356,8]
[394725774,1763919058591,-1181.14,0.00038356,8]
[394725775,1763919058601,-1117.53,0.00038356,8]
[394725776,1763919058611,-500.0,0.00038356,8]
[394725777,1763919058621,-500.0,0.00038356,8]
[394725778,1763919058631,-500.0,0.00038356,8]
[394725779,1763919058641,-544.85,0.00038356,8]
[394725780,1763919058651,-391.81355814,0.00038356,8]
[394725781,1763919058660,-500.0,0.00038356,8]
[394725782,1763919058669,-507.47,0.00038356,8]
[394725783,1763919058678,-500.0,0.00038356,8]
[394725784,1763919058687,-500.0,0.00038356,8]
[394725785,1763919058698,-500.0,0.00038356,8]
[394725786,1763919058707,-500.0,0.00038356,8]
[394725787,1763919058719,-500.0,0.00038356,8]
[394725788,1763919058727,-500.0,0.00038356,8]
[394725789,1763919058737,-500.0,0.00038356,8]
[394725790,1763919058747,-500.0,0.00038356,8]
[394725791,1763919058756,-500.0,0.00038356,8]
[394725792,1763919058766,-500.0,0.00038356,8]
[394725793,1763919058777,-609.73204727,0.00038356,8]
[394725794,1763919058786,-500.0,0.00038356,8]
[394725795,1763919058796,-858.31,0.00038356,8]
[394725796,1763919058805,-500.0,0.00038356,8]
[394725797,1763919058815,-500.0,0.00038356,8]
[394725798,1763919058825,-500.0,0.00038356,8]
[394725799,1763919058834,-500.0,0.00038356,8]
[394725800,1763919058843,-500.0,0.00038356,8]
[394725801,1763919058852,-930.02,0.00038356,8]
[394725802,1763919058861,-500.0,0.00038356,8]
[394725803,1763919058871,-500.0,0.00038356,8]
[394725804,1763919058880,-500.0,0.00038356,8]
[394725805,1763919058889,-500.0,0.00038356,8]
[394725806,1763919058899,-500.0,0.00038356,8]
[394725807,1763919059086,-500.0,0.00038356,8]
[394725808,1763919059096,-500.0,0.00038356,8]
[394725809,1763919059105,-500.0,0.00038356,8]
[394725810,1763919059115,-238.63832013,0.00038356,8]
[394725811,1763919059125,-500.0,0.00038356,8]
[394725812,1763919059135,-500.0,0.00038356,8]
[394725813,1763919059145,-500.0,0.00038356,8]
[394725814,1763919059155,-500.0,0.00038356,8]
[394725815,1763919059165,-500.0,0.00038356,8]
[394725816,1763919059175,-500.0,0.00038356,8]
[394725817,1763919059185,-500.0,0.00038356,8]
[394725818,1763919059195,-500.0,0.00038356,8]
[394725819,1763919059204,-500.0,0.00038356,8]
[394725820,1763919059214,-642.60742201,0.00038356,8]
[394725821,1763919059224,-500.0,0.00038356,8]
[394725822,1763919059234,-500.0,0.00038356,8]
[394725823,1763919059245,-663.61,0.00038356,8]
[394725824,1763919059254,-500.0,0.00038356,8]
[394725825,1763919059264,-500.0,0.00038356,8]
[394725826,1763919059274,-500.0,0.00038356,8]
[394725827,1763919059284,-500.0,0.00038356,8]
[394725828,1763919059294,-500.0,0.00038356,8]
[394725829,1763919059304,-505.62422017,0.00038356,8]
[394725830,1763919059314,-521.83,0.00038356,8]
[394725831,1763919059324,-500.0,0.00038356,8]